bitfinex/quotes_ETHUSD_20240707
["timestamp","ask_amount","ask_price","bid_price","bid_amount"]
[1720376532628,5.35131192,3002.4,3002.3,0.989]
[1720376533145,2.84987712,3002.4,3002.3,3.32054]
[1720376533347,1.69595014,3002.4,3002.3,3.32054]
[1720376533959,3.0,3002.6,3002.4,2.33146]
[1720376534267,3.0,3002.6,3002.5,3.998]
[1720376534451,3.0,3003.1,3003.0,2.331]
[1720376534759,4.6957433,3003.1,3003.0,3.32]
[1720376535822,4.6957433,3003.1,3003.0,2.331]
[1720376536022,4.6957433,3003.1,3002.8,2.33115]
[1720376536023,8.35001512,3003.1,3002.8,2.33115]
[1720376536222,1.6957433,3003.0,3002.8,2.33115]
[1720376536423,1.6957433,3003.0,3002.9,0.989]
[1720376536643,1.6957433,3003.0,3002.9,2.33107]
[1720376537462,1.6957433,3003.0,3002.8,2.374]
[1720376538689,1.6957433,3003.0,3002.8,4.70511]
[1720376539545,1.6957433,3003.0,3002.8,2.374]
[1720376539749,2.40965553,3003.0,3002.6,3.0]
[1720376540060,1.6957433,3002.9,3002.5,2.33137]
[1720376540261,1.6957433,3002.9,3002.6,2.33126]
[1720376540485,1.6957433,3002.9,3002.6,3.0]
[1720376540664,3.0,3002.7,3002.4,7.7054]
[1720376541090,3.0,3002.7,3002.5,2.33136]
[1720376544375,3.0,3002.7,3002.6,2.33131]
[1720376544580,4.69590362,3002.7,3002.6,5.33131]
[1720376544801,4.69590362,3002.7,3002.6,2.33131]
[1720376548814,6.14961908,3002.7,3002.6,2.33131]
[1720376549106,7.19734204,3002.7,3002.6,2.33131]
[1720376549608,9.55980421,3002.7,3002.5,3.0]
[1720376549813,4.19848764,3002.6,3002.4,4.70545]
[1720376550117,5.25639454,3002.7,3002.5,3.0]
[1720376550267,4.54689554,3002.6,3002.5,3.0]
[1720376550462,3.1499316,3002.6,3002.5,3.0]
[1720376551165,4.54689554,3002.6,3002.5,3.0]
[1720376551366,5.70072337,3002.6,3002.5,3.0]
[1720376551566,4.54689554,3002.6,3002.5,3.0]
[1720376551803,3.09306829,3002.6,3002.5,3.0]
[1720376551968,9.32508376,3002.6,3002.0,2.33172]
[1720376552178,1.04931509,3002.2,3002.0,2.33172]
[1720376552400,1.69610435,3002.1,3002.0,2.33172]
[1720376552971,3.15002661,3002.1,3002.0,2.33172]
[1720376553175,3.15005684,3002.1,3002.0,2.33172]
[1720376553402,3.15005705,3002.1,3002.0,2.33172]
[1720376553590,1.69610435,3002.1,3002.0,2.33172]
[1720376554513,3.15005369,3002.1,3002.0,2.33172]
[1720376555112,1.69610435,3002.1,3002.0,2.33172]
[1720376555314,3.15007855,3002.1,3002.0,2.33172]
[1720376556409,1.69610435,3002.1,3002.0,2.33172]
[1720376556612,3.15007881,3002.1,3002.0,2.33172]
[1720376556819,1.69610435,3002.1,3002.0,2.33172]
[1720376557120,3.15007855,3002.1,3002.0,2.33172]
[1720376557272,1.69610435,3002.1,3002.0,2.33172]
[1720376558617,3.15009592,3002.1,3002.0,2.33172]
[1720376558766,3.15009592,3002.1,3002.0,3.32172]
[1720376559770,1.69610435,3002.1,3002.0,5.65349]
[1720376560005,1.04931509,3002.4,3002.2,2.33157]
[1720376560212,3.15005963,3002.3,3002.2,3.32157]
[1720376561201,3.15007406,3002.3,3002.2,3.32157]
[1720376561731,1.69618897,3002.3,3002.2,3.32157]
[1720376561879,3.15008117,3002.3,3002.2,3.32157]
[1720376562224,3.15008091,3002.3,3002.2,3.32157]
[1720376562715,1.04872276,3002.6,3002.5,2.33139]
[1720376562931,1.69597429,3002.6,3002.5,5.65278]
[1720376564420,3.0,3002.7,3002.6,4.66262]
[1720376564577,4.69580931,3002.7,3002.6,5.227882]
[1720376566076,4.69580931,3002.7,3002.6,4.66262]
[1720376566609,6.14947727,3002.7,3002.6,4.66262]
[1720376567496,6.14947583,3002.7,3002.6,4.66262]
[1720376568275,5.74453207,3002.7,3002.6,0.99]
[1720376568389,7.19820636,3002.7,3002.6,0.99]
[1720376568916,4.69580931,3002.7,3002.6,3.32131]
[1720376569113,6.14949846,3002.7,3002.6,3.32131]
[1720376570187,7.19822122,3002.7,3002.6,3.32131]
[1720376570719,6.14949846,3002.7,3002.6,3.32131]
[1720376571278,4.69580931,3002.7,3002.6,3.32131]
[1720376572127,7.19821377,3002.7,3002.6,3.32131]
[1720376573324,7.19823551,3002.7,3002.6,3.32131]
[1720376574290,7.19838532,3002.7,3002.6,3.32131]
[1720376574897,5.74468188,3002.7,3002.6,3.32131]
[1720376575187,7.19839303,3002.7,3002.6,3.32131]
[1720376575527,8.05806204,3002.7,3002.3,2.33148]
[1720376575685,5.25796603,3002.7,3002.6,0.99]
[1720376575885,9.56157597,3002.7,3002.6,0.99]
[1720376576308,8.16327895,3002.7,3002.6,0.99]
[1720376576520,9.56157597,3002.7,3002.6,0.99]
[1720376578108,6.95401041,3002.7,3002.6,0.99]
[1720376578308,8.70189206,3002.7,3002.6,0.99]
[1720376578650,9.85567554,3002.7,3002.6,0.99]
[1720376579143,7.30359504,3002.7,3002.6,0.99]
[1720376579310,8.45733961,3002.7,3002.6,0.99]
[1720376579497,9.85563663,3002.7,3002.6,0.99]
[1720376580397,11.01600911,3002.7,3002.6,0.99]
[1720376580736,11.36580028,3002.7,3002.6,0.99]
[1720376580893,7.01020034,3002.7,3002.6,0.99]
[1720376581088,9.61783298,3002.7,3002.6,0.99]
[1720376581324,11.36615994,3002.7,3002.6,0.99]
[1720376581627,11.36637645,3002.7,3002.6,0.99]
[1720376582142,3.0,3002.3,3002.1,0.99]
[1720376582436,5.70284912,3002.2,3001.7,2.332]
[1720376582624,1.04934075,3002.0,3001.7,2.332]
[1720376582806,3.15010477,3001.9,3001.7,2.332]
[1720376583126,4.19946956,3001.8,3001.6,2.33206]
[1720376583347,1.69604438,3001.7,3001.6,2.33206]
[1720376583546,1.69604438,3001.7,3001.6,3.32206]
[1720376584352,1.69604438,3001.7,3001.6,6.32206]
[1720376585544,2.74538513,3001.8,3001.6,6.32206]
[1720376585751,1.69604438,3001.7,3001.6,5.33206]
[1720376585917,1.69604438,3001.7,3001.6,6.32206]
[1720376586524,1.69604438,3001.8,3001.6,6.32206]
[1720376586712,1.69604438,3001.7,3001.6,5.33206]
[1720376586914,1.69650509,3001.8,3001.7,0.99]
[1720376587336,1.04867684,3001.9,3001.7,0.99]
[1720376587522,1.69650509,3001.8,3001.7,3.0]
[1720376587727,1.69650509,3001.8,3001.7,6.32201]
[1720376588784,1.69650509,3001.8,3001.7,9.519437]
[1720376589084,1.69650509,3001.8,3001.7,10.069437]
[1720376589250,1.04867684,3002.1,3001.9,2.33185]
[1720376589451,1.69639478,3002.0,3001.9,2.33185]
[1720376589699,1.69639478,3002.0,3001.9,3.32185]
[1720376590152,1.69639478,3002.0,3001.9,0.99]
[1720376590348,4.1987632,3002.0,3001.9,0.99]
[1720376590891,4.19890079,3002.0,3001.9,0.99]
[1720376591787,3.15061591,3002.0,3001.9,0.99]
[1720376591949,3.15062173,3002.0,3001.9,0.99]
[1720376592655,4.19872539,3002.0,3001.9,0.99]
[1720376593087,3.15062173,3002.0,3001.9,0.99]
[1720376593273,4.19866379,3002.0,3001.9,0.99]
[1720376593683,2.74451447,3002.0,3001.9,0.99]
[1720376593990,4.19863269,3002.0,3001.9,0.99]
[1720376594683,3.15059063,3002.0,3001.9,0.99]
[1720376594855,3.15065262,3002.0,3001.9,0.99]
[1720376595061,4.19867645,3002.0,3001.9,0.99]
[1720376595366,3.15065262,3002.0,3001.9,0.99]
[1720376596057,3.15065262,3002.0,3001.6,2.33206]
[1720376596257,4.19860076,3001.9,3001.6,5.33206]
[1720376596452,1.69647241,3001.8,3001.6,5.33206]
[1720376596653,1.69647241,3001.8,3001.7,0.99]
[1720376597398,3.0,3001.7,3001.2,9.73234]
[1720376597701,1.04794814,3001.5,3001.2,7.4]
[1720376597997,4.19874195,3001.4,3001.0,2.33255]
[1720376598155,4.19874195,3001.4,3000.9,7.07776]
[1720376598156,1.69647241,3001.3,3000.9,7.07776]
[1720376598376,1.69647241,3001.3,3001.2,0.99]
[1720376599494,1.97091447,3001.3,3000.9,2.33258]
[1720376599713,1.69647241,3001.2,3000.7,2.33276]
[1720376599921,1.69647241,3001.2,3001.1,0.99]
[1720376600321,2.7437556,3001.2,3001.1,0.99]
[1720376600628,3.21550745,3001.2,3001.1,0.99]
[1720376601380,2.16822426,3001.2,3000.5,2.3329]
[1720376601574,1.69647241,3001.1,3001.0,0.99]
[1720376601820,1.69647241,3001.1,3000.5,2.3329]
[1720376601979,3.0,3000.9,3000.8,0.99]
[1720376602180,5.27084797,3000.9,3000.1,4.81302]
[1720376602427,1.69647241,3000.8,3000.7,0.99]
[1720376604282,6.04037556,3000.9,3000.7,0.99]
[1720376604883,1.69729092,3000.8,2999.9,2.33341]
[1720376605084,3.0,3000.5,3000.4,0.99]
[1720376606085,3.0,3000.5,2999.8,4.66692]
[1720376606281,3.0,3000.5,3000.3,0.99]
[1720376606493,3.0,3000.5,2999.8,2.33346]
[1720376606698,3.0,3000.5,3000.1,0.99]
[1720376606699,2.6678,3000.4,3000.1,0.99]
[1720376608304,3.0,3000.0,2999.5,2.33372]
[1720376608500,3.0,3000.0,2999.9,0.99]
[1720376608728,3.0,3000.0,2999.5,2.33372]
[1720376609091,3.0,3000.0,2999.4,2.2534]
[1720376609291,3.0,3000.0,2999.4,4.58719]
[1720376609700,3.0,3000.0,2999.3,0.14496198]
[1720376609701,2.399,2999.9,2999.3,0.14496198]
[1720376609906,3.0,2999.7,2999.3,0.14496198]
[1720376611829,3.0,2999.7,2999.3,2.47882198]
[1720376612025,3.0,2999.7,2999.4,2.33374]
[1720376613609,3.0,2999.7,2999.3,0.14496198]
[1720376613799,3.0,2999.4,2999.3,0.14496198]
[1720376618838,3.0,2999.7,2999.4,2.33379]
[1720376619039,3.0,3000.0,2999.4,4.71279]
[1720376619198,3.0,2999.6,2999.5,2.8194952]
[1720376619838,3.0,2999.9,2999.8,2.33348]
[1720376620040,3.0,2999.9,2999.8,9.43826]
[1720376621352,3.0,2999.9,2999.8,7.10478]
[1720376621551,3.0,2999.9,2999.8,4.71248]
[1720376621902,3.0,2999.9,2999.8,7.750564]
[1720376623208,3.0,3000.4,3000.3,2.33306]
[1720376626529,3.0,3000.8,3000.7,2.33278]
[1720376627342,3.0,3000.8,3000.6,2.33286]
[1720376627771,3.0,3000.8,3000.6,4.66567]
[1720376627957,3.0,3000.8,3000.7,2.33278]
[1720376629272,3.0,3000.8,3000.5,2.33287]
[1720376629565,3.0,3000.8,3000.7,2.33278]
[1720376635392,3.0,3000.8,3000.5,4.66581]
[1720376636290,3.0,3000.8,3000.5,2.33287]
[1720376636607,3.3,3000.8,3000.3,2.33304]
[1720376639598,3.3,3000.8,3000.3,4.66609]
[1720376639786,3.0,3000.8,3000.3,2.33304]
[1720376639976,1.69727185,3000.7,3000.3,2.33304]
[1720376641001,0.34835561,3000.6,3000.2,2.379]
[1720376641719,0.34835561,3000.6,3000.3,2.3011]
[1720376642815,1.39298929,3001.2,3001.1,2.33247]
[1720376642816,3.0,3001.2,3001.1,2.33247]
[1720376643027,4.69686911,3001.2,3001.1,3.32347]
[1720376643954,4.69686911,3001.2,3001.1,0.991]
[1720376644109,4.69686911,3001.2,3000.7,2.33274]
[1720376644295,4.04474196,3001.2,3001.1,0.991]
[1720376644489,8.89453107,3001.2,3001.1,0.991]
[1720376644687,8.89453107,3001.2,3000.8,2.3327]
[1720376644890,1.69696154,3001.1,3000.8,2.3327]
[1720376645092,4.13326154,3001.1,3000.6,2.377]
[1720376645288,4.30615823,3001.0,3000.5,2.33289]
[1720376645535,1.69696154,3000.9,3000.5,5.33289]
[1720376646040,5.60934219,3000.8,3000.4,9.733]
[1720376646251,4.30637468,3000.7,3000.4,2.333]
[1720376646550,1.69696154,3000.6,3000.5,2.33294]
[1720376646695,1.69716006,3000.7,3000.6,2.33286]
[1720376646895,1.69712143,3000.7,3000.6,2.33286]
[1720376647409,1.69708178,3000.7,3000.6,2.33286]
[1720376648340,1.04702293,3001.2,3001.0,2.3325]
[1720376648546,2.85130907,3001.1,3001.0,2.3325]
[1720376650760,2.85132648,3001.1,3001.0,2.3325]
[1720376650926,2.85137321,3001.1,3001.0,2.3325]
[1720376653806,1.69697642,3001.1,3001.0,2.3325]
[1720376654096,1.15439823,3001.1,3001.0,2.3325]
[1720376654273,2.85137465,3001.1,3001.0,2.3325]
[1720376655018,1.69697642,3001.1,3001.0,2.3325]
[1720376655301,1.15440696,3001.1,3001.0,2.3325]
[1720376655506,2.85138338,3001.1,3001.0,2.3325]
[1720376656197,2.85138338,3001.1,3000.9,2.377]
[1720376656397,2.85138338,3001.0,3000.9,2.377]
[1720376656969,1.15440696,3001.0,3000.9,4.70963]
[1720376657164,1.04641308,3001.3,3001.0,2.33247]
[1720376657476,2.85131593,3001.2,3001.0,2.33247]
[1720376657806,2.85130357,3001.1,3001.0,2.33247]
[1720376658757,1.1543708,3001.1,3001.0,7.02332]
[1720376658915,1.04641308,3001.7,3001.5,2.33216]
[1720376659247,4.39521744,3001.8,3001.1,2.33241]
[1720376659248,3.0,3001.8,3001.7,2.33201]
[1720376659408,5.8506498,3001.8,3001.7,2.33201]
[1720376660301,4.69654117,3001.8,3001.7,2.33201]
[1720376660503,5.85067334,3001.8,3001.7,2.33201]
[1720376661044,2.85067334,3001.8,3001.7,5.366259]
[1720376661199,1.04641308,3002.1,3002.0,2.33177]
[1720376661559,1.15401148,3002.1,3002.0,2.33177]
[1720376661717,1.69640589,3002.1,3002.0,4.66354]
[1720376661911,1.69629389,3002.2,3002.1,2.3317]
[1720376662104,4.04641308,3002.4,3002.2,2.33157]
[1720376662105,2.74272577,3002.3,3002.2,2.33157]
[1720376662311,2.85026944,3002.3,3002.2,2.33157]
[1720376662755,2.85026944,3002.3,3001.9,2.33177]
[1720376662926,3.89668252,3002.2,3001.8,2.33189]
[1720376663128,4.30439478,3002.1,3001.8,2.33187]
[1720376663343,1.6963116,3002.0,3001.8,2.33187]
[1720376663840,1.6963116,3001.9,3001.8,2.33187]
[1720376664037,1.69642377,3002.1,3001.9,2.33183]
[1720376664236,1.69640677,3002.0,3001.9,2.33183]
[1720376664438,1.69640677,3002.1,3001.9,2.33183]
[1720376664657,1.69640677,3002.0,3001.9,2.33183]
[1720376664859,1.69640677,3002.1,3001.9,2.33183]
[1720376665068,1.04641308,3002.2,3001.9,2.33183]
[1720376665069,1.69640677,3002.0,3001.9,2.33183]
[1720376665856,1.69640677,3002.1,3001.9,2.33183]
[1720376666176,1.69640677,3002.0,3001.9,2.33183]
[1720376666361,3.0,3001.9,3001.5,2.3321]
[1720376666575,1.69640677,3001.8,3001.6,2.33207]
[1720376666722,2.7429845,3001.8,3001.7,2.33201]
[1720376666930,2.7429845,3001.8,3001.6,2.33207]
[1720376667124,1.69640677,3001.7,3001.6,2.33207]
[1720376667559,1.69640677,3001.7,3001.4,2.33222]
[1720376667760,2.7429845,3001.7,3001.4,2.33222]
[1720376667952,1.69640677,3001.6,3001.4,2.33222]
[1720376668145,1.69640677,3001.6,3001.3,2.33224]
[1720376669455,2.7429845,3001.6,3001.3,2.33224]
[1720376669640,1.69640677,3001.5,3001.3,2.33224]
[1720376669841,1.69640677,3001.4,3001.3,2.33224]
[1720376670061,2.7429845,3001.6,3001.3,2.33224]
[1720376670266,1.69640677,3001.5,3001.3,2.33224]
[1720376670591,1.69640677,3001.5,3001.2,2.377]
[1720376670772,1.69640677,3001.5,3001.2,5.377]
[1720376671346,1.69640677,3001.5,3001.2,7.70938]
[1720376672286,2.7429845,3001.5,3001.2,7.70938]
[1720376672496,1.69640677,3001.4,3001.2,7.70938]
[1720376673574,1.04657773,3001.6,3001.2,7.70938]
[1720376673882,1.69672311,3001.5,3001.2,7.70938]
[1720376674883,2.74330084,3001.5,3001.2,4.70938]
[1720376675197,1.69672311,3001.4,3001.2,4.70938]
[1720376675784,1.69672311,3001.4,3001.2,2.377]
[1720376676089,2.74330084,3001.4,3001.2,4.7094]
[1720376676389,1.69672311,3001.3,3001.2,4.7094]
[1720376679086,1.69672311,3001.4,3001.2,4.7094]
[1720376679294,1.69672311,3001.3,3001.2,4.7094]
[1720376679669,1.69672311,3001.4,3001.2,7.04175]
[1720376679990,1.69672311,3001.3,3001.2,7.04175]
[1720376680187,1.69672311,3001.3,3001.2,4.70932]
[1720376680386,1.69672311,3001.4,3001.2,4.70932]
[1720376680593,1.69672311,3001.3,3001.2,4.70932]
[1720376680756,1.69677481,3001.4,3001.3,2.33232]
[1720376680957,1.69676852,3001.4,3001.3,5.368805]
[1720376681300,1.04746147,3001.7,3001.6,2.33208]
[1720376681486,5.35251736,3001.7,3001.6,2.33208]
[1720376682087,5.35251736,3001.7,3001.4,2.33218]
[1720376682284,1.69663037,3001.6,3001.4,2.33218]
[1720376682484,2.74409184,3001.6,3001.4,2.33218]
[1720376682662,1.69663037,3001.5,3001.4,2.33218]
[1720376684685,5.35264981,3001.5,3001.4,2.33218]
[1720376685979,2.74409184,3001.5,3001.4,2.33218]
[1720376686189,5.3526352,3001.5,3001.4,2.33218]
[1720376686376,2.74409184,3001.5,3001.4,2.33218]
[1720376686576,5.35310617,3001.5,3001.4,2.33218]
[1720376687603,5.35312531,3001.5,3001.4,2.33218]
[1720376689411,3.89878926,3001.5,3001.4,2.33218]
[1720376689611,5.35309658,3001.5,3001.4,2.33218]
[1720376691182,4.3051517,3001.5,3001.4,2.33218]
[1720376691487,5.70241154,3001.5,3001.4,2.33218]
[1720376692203,8.70241154,3001.5,3001.2,7.04169]
[1720376692414,1.0487452,3001.3,3001.2,4.70934]
[1720376692568,3.15106641,3001.3,3001.2,2.33234]
[1720376692762,5.35417434,3001.3,3001.2,3.32234]
[1720376693122,4.30537976,3001.3,3001.2,3.32234]
[1720376694484,5.7037067,3001.3,3001.2,3.32234]
[1720376695768,4.54939335,3001.3,3001.2,3.32234]
[1720376695971,5.70374643,3001.3,3001.2,3.32234]
[1720376696373,5.70422615,3001.3,3001.2,3.32234]
[1720376696884,4.30541948,3001.3,3001.2,3.32234]
[1720376697104,5.35449874,3001.3,3001.2,6.220221]
[1720376697418,2.85096183,3001.3,3001.2,6.220221]
[1720376697969,1.69663037,3001.3,3001.2,6.220221]
[1720376698173,2.85083322,3001.3,3001.2,6.220221]
[1720376698374,4.30517404,3001.3,3001.2,6.220221]
[1720376698670,5.3542533,3001.3,3001.2,6.220221]
[1720376699292,3.15096964,3001.3,3001.2,6.220221]
[1720376699578,4.30520715,3001.3,3001.2,6.220221]
[1720376699796,5.35445941,3001.3,3001.1,2.33246]
[1720376700073,4.30520715,3001.2,3001.1,2.33246]
[1720376700299,5.35445941,3001.2,3001.1,3.32246]
[1720376700699,4.30520715,3001.2,3001.1,3.32246]
[1720376701084,5.35467212,3001.2,3000.8,2.33266]
[1720376701333,1.39900301,3001.3,3000.9,2.33259]
[1720376701334,1.04946497,3001.0,3000.9,2.33259]
[1720376701535,4.30520715,3001.0,3000.9,3.32259]
[1720376701749,5.70463147,3001.0,3000.9,3.32259]
[1720376702051,6.85905598,3001.0,3000.9,3.32259]
[1720376703338,5.46005297,3001.0,3000.7,2.33278]
[1720376703548,2.90384075,3001.0,3000.9,0.99]
[1720376703846,7.20996958,3001.0,3000.9,0.99]
[1720376704963,7.20988524,3001.0,3000.9,0.99]
[1720376705125,2.85147869,3001.0,3000.9,0.99]
[1720376705448,7.20989449,3001.0,3000.9,0.99]
[1720376705623,6.85980948,3001.0,3000.9,0.99]
[1720376706227,5.46065963,3001.0,3000.9,0.99]
[1720376706413,5.4605717,3001.0,3000.9,0.99]
[1720376706843,6.85962806,3001.0,3000.9,0.99]
[1720376707146,6.85962806,3001.0,3000.9,3.654907]
[1720376707363,5.3553255,3001.0,3000.9,6.127807]
[1720376707954,5.46050886,3001.0,3000.9,0.99]
[1720376708159,6.85962604,3001.0,3000.9,0.99]
[1720376708855,6.85962604,3001.0,3000.6,2.33282]
[1720376709061,1.04952242,3000.8,3000.6,4.66563]
[1720376709216,4.201168,3000.7,3000.6,2.33281]
[1720376709411,4.201168,3000.7,3000.6,3.32281]
[1720376709811,4.201168,3000.7,3000.4,2.33295]
[1720376710060,4.201168,3000.6,3000.5,2.33294]
[1720376710262,4.201168,3000.6,3000.5,0.99]
[1720376710554,4.30625641,3000.6,3000.5,0.99]
[1720376711258,3.15190845,3000.6,3000.5,0.99]
[1720376711429,6.05607536,3000.6,3000.5,0.99]
[1720376711626,4.30655524,3000.6,3000.5,0.99]
[1720376712851,4.30655524,3000.6,3000.3,2.33304]
[1720376713029,1.04943158,3000.4,3000.3,2.33304]
[1720376713228,4.20134003,3000.4,3000.3,2.33304]
[1720376713415,4.20112669,3000.4,3000.3,2.33304]
[1720376714530,2.74627303,3000.4,3000.3,2.33304]
[1720376714871,4.20112369,3000.4,3000.3,2.33304]
[1720376715015,3.15187192,3000.4,3000.3,2.799661]
[1720376715220,4.20086735,3000.4,3000.3,2.33304]
[1720376716339,4.20086496,3000.4,3000.3,2.33304]
[1720376716848,5.70524104,3000.4,2999.9,2.3334]
[1720376717055,1.04877004,3000.2,2999.9,2.3334]
[1720376717223,1.69705479,3000.1,2999.8,2.33343]
[1720376717423,2.74582483,3000.1,2999.8,2.33343]
[1720376717751,1.69705479,3000.0,2999.8,2.33343]
[1720376718124,1.69705479,3000.0,2999.7,4.71155]
[1720376719731,1.69705479,3000.0,2999.7,7.04506]
[1720376720319,1.69705479,3000.0,2999.7,4.71151]
[1720376720761,1.04877004,3000.2,2999.7,7.04503]
[1720376720762,1.69705479,2999.9,2999.7,7.04503]
[1720376721025,1.04877004,3000.2,2999.7,7.04503]
[1720376721237,1.69758628,3000.1,2999.7,7.04503]
[1720376721470,1.69758628,3000.1,2999.8,2.33347]
[1720376721824,1.69758628,3000.0,2999.8,2.33347]
[1720376722029,1.04877004,3000.3,2999.8,2.33347]
[1720376722375,1.69756986,3000.2,2999.8,2.33347]
[1720376722522,1.69756986,3000.2,2999.7,4.7115]
[1720376722837,2.7463399,3000.2,2999.7,7.04502]
[1720376723042,1.69756986,3000.1,2999.8,2.33348]
[1720376723753,1.69756986,3000.0,2999.8,2.33348]
[1720376723952,4.04877004,3000.3,2999.8,2.33348]
[1720376724177,1.69757222,3000.2,2999.8,2.33348]
[1720376724730,1.69757222,3000.2,2999.7,2.378]
[1720376725031,2.74427252,3000.2,2999.7,4.71155]
[1720376725231,1.69757222,3000.1,2999.7,2.378]
[1720376725466,1.69757222,3000.1,2999.7,4.71149]
[1720376725673,4.0467003,3000.3,2999.7,4.71149]
[1720376725964,1.69760914,3000.2,2999.7,4.71149]
[1720376726401,1.69760914,3000.2,2999.8,2.33346]
[1720376729326,1.69760914,3000.2,2999.7,2.378]
[1720376729327,2.41151928,3000.2,2999.7,2.378]
[1720376729527,2.85241403,3000.1,2999.7,2.378]
[1720376729827,0.71391014,3000.2,2999.6,2.33357]
[1720376730073,2.85248299,3000.1,2999.6,2.33357]
[1720376730288,0.71391014,3000.2,2999.6,2.33357]
[1720376730589,3.32852171,3000.1,2999.7,2.33352]
[1720376730773,0.4760264,3000.1,2999.7,2.33352]
[1720376731684,4.04630673,3000.3,2999.7,2.33352]
[1720376731885,2.8524683,3000.2,2999.7,2.3335]
[1720376732041,2.8524683,3000.1,2999.7,2.3335]
[1720376732245,4.04630673,3000.3,2999.7,2.3335]
[1720376732457,2.85247878,3000.2,2999.7,2.3335]
[1720376732643,2.85247878,3000.1,2999.7,2.3335]
[1720376732844,4.04630673,3000.3,2999.7,2.3335]
[1720376733074,2.8524753,3000.2,2999.7,2.3335]
[1720376733290,2.8524753,3000.1,2999.7,2.3335]
[1720376733466,4.59044497,3000.3,2999.7,2.3335]
[1720376733653,2.85247123,3000.2,2999.7,2.3335]
[1720376733855,2.85247123,3000.1,2999.7,2.3335]
[1720376734056,4.59044497,3000.3,2999.7,2.3335]
[1720376734357,2.85246116,3000.2,2999.7,2.3335]
[1720376734670,2.85246116,3000.1,2999.7,2.3335]
[1720376734854,4.59044497,3000.3,3000.0,0.991]
[1720376735050,2.852463,3000.2,2999.7,4.66702]
[1720376735363,2.852463,3000.1,2999.8,2.33345]
[1720376735577,3.0,3000.3,3000.0,0.991]
[1720376735779,2.85233953,3000.2,2999.9,2.3483]
[1720376735967,3.0,3000.3,3000.1,0.991]
[1720376736148,2.85233254,3000.2,2999.9,2.3483]
[1720376736347,2.85237098,3000.1,2999.9,2.3483]
[1720376736577,4.04630673,3000.3,3000.0,0.991]
[1720376736788,3.39657718,3000.2,2999.8,2.33345]
[1720376737003,2.85243894,3000.1,2999.8,2.33345]
[1720376737301,4.04630673,3000.3,3000.0,0.991]
[1720376737508,2.85238548,3000.2,2999.8,2.33345]
[1720376737807,2.85238478,3000.1,2999.8,2.33345]
[1720376737959,4.04630673,3000.3,3000.0,0.991]
[1720376738159,2.85240454,3000.2,2999.8,2.33345]
[1720376738359,2.85240454,3000.1,2999.8,2.33345]
[1720376738597,1.15482735,3000.0,2999.8,2.33345]
[1720376738802,4.04630673,3000.3,2999.9,0.991]
[1720376738958,2.85240806,3000.2,2999.8,2.33348]
[1720376739155,2.85240806,3000.1,2999.8,2.33348]
[1720376739360,2.85240806,3000.0,2999.8,2.33348]
[1720376739583,1.04630673,3000.1,2999.8,2.33348]
[1720376739584,2.85240806,2999.9,2999.8,2.33348]
[1720376739793,2.85240806,2999.9,2999.8,3.32448]
[1720376740963,2.85242852,2999.9,2999.8,3.32448]
[1720376744089,1.69757434,2999.9,2999.8,3.32448]
[1720376744267,2.85244895,2999.9,2999.8,3.32448]
[1720376744472,1.69757434,2999.9,2999.8,3.32448]
[1720376744672,2.85243959,2999.9,2999.8,3.32448]
[1720376747478,2.85242947,2999.9,2999.8,3.32448]
[1720376748416,4.30754635,2999.9,2999.8,3.32448]
[1720376748624,2.85242947,2999.9,2999.8,3.32448]
[1720376748773,4.30754615,2999.9,2999.8,3.32448]
[1720376749496,5.35585182,2999.9,2999.8,3.32448]
[1720376750729,3.90072568,2999.9,2999.8,3.32448]
[1720376751028,5.35583123,2999.9,2999.8,3.32448]
[1720376751713,5.3558628,2999.9,2999.8,3.32448]
[1720376752093,4.30755713,2999.9,2999.8,3.32448]
[1720376752627,5.70529802,2999.9,2999.8,3.32448]
[1720376754022,1.69760591,2999.9,2999.8,3.32448]
[1720376754236,5.7072386,2999.9,2999.8,3.32448]
[1720376754443,4.25209206,2999.9,2999.8,3.32448]
[1720376754614,5.70723619,2999.9,2999.8,3.32448]
[1720376755714,4.30741411,2999.9,2999.8,3.32448]
[1720376755916,5.35773963,2999.9,2999.8,3.891758]
[1720376756135,5.35774063,2999.9,2999.8,6.225238]
[1720376756507,4.30741411,2999.9,2999.8,6.225238]
[1720376757318,1.69760591,2999.9,2999.8,6.225238]
[1720376757643,5.70704445,2999.9,2999.8,6.225238]
[1720376758230,4.30743459,2999.9,2999.8,6.225238]
[1720376758460,1.69760591,2999.9,2999.8,6.225238]
[1720376758646,5.70872312,2999.9,2999.8,6.225238]
[1720376759324,5.70865421,2999.9,2999.8,6.225238]
[1720376760336,4.3073676,2999.9,2999.8,6.225238]
[1720376760533,2.74874103,2999.9,2999.8,9.088938]
[1720376760756,1.697537,2999.9,2999.8,9.088938]
[1720376760958,3.15239514,2999.9,2999.8,11.422418]
[1720376761160,1.697537,2999.9,2999.8,14.422418]
[1720376761366,1.05120403,3000.3,3000.2,6.99951]
[1720376761570,1.05120403,3000.6,3000.5,4.66588]
[1720376761783,1.05120403,3000.7,3000.6,4.66572]
[1720376762066,4.05120403,3000.8,3000.7,4.66556]
[1720376762272,3.0,3000.8,3000.7,6.51051]
[1720376762441,5.50572428,3000.8,3000.7,6.51051]
[1720376762625,2.50572428,3000.8,3000.7,8.80341]
[1720376762979,1.05120403,3001.0,3000.7,6.47063]
[1720376763137,1.05120403,3001.1,3001.0,4.6651]
[1720376763338,1.05120403,3001.3,3001.2,2.3324]
[1720376763537,1.39852285,3001.5,3001.3,2.33232]
[1720376763750,2.50315483,3001.4,3001.3,4.66464]
[1720376763953,1.04883294,3001.5,3001.4,2.33224]
[1720376764214,2.50312453,3001.5,3001.4,3.32324]
[1720376764374,1.39852285,3001.6,3001.5,2.33216]
[1720376764375,1.04883294,3001.6,3001.5,2.33216]
[1720376764567,2.50314537,3001.6,3001.5,2.33216]